[Event "Titled Tuesday Blitz July 4 Early 2023"]
[White "Atakhan, Abtin"]
[Black "Galchenko, Matvey"]
[WhiteFideId "22502203"]
[BlackFideId "24175480"]
[WhiteElo "2764"]
[BlackElo "2882"]
[Result "0-1"]
[Round "10"]
[TimeControl "180+2"]
[Date "2023.07.04"]
[WhiteClock "0:00:00"]
[BlackClock "0:00:05"]
[Board "22"]

1. Nf3 {[%clk 0:03:00]}  c5 {[%clk 0:02:57]} 2. c4 {[%clk 0:03:00]}  g6 {[%clk 0:02:57]} 3. e4 {[%clk 0:02:58]}  Bg7 {[%clk 0:02:55]} 4. d4 {[%clk 0:02:59]}  cxd4 {[%clk 0:02:56]} 5. Nxd4 {[%clk 0:03:00]}  Nc6 {[%clk 0:02:57]} 6. Be3 {[%clk 0:03:00]}  Nf6 {[%clk 0:02:57]} 7. Nc3 {[%clk 0:03:00]}  O-O {[%clk 0:02:55]} 8. Be2 {[%clk 0:03:01]}  d6 {[%clk 0:02:55]} 9. O-O {[%clk 0:03:01]}  Nxd4 {[%clk 0:02:56]} 10. Bxd4 {[%clk 0:03:01]}  Bd7 {[%clk 0:02:57]} 11. h3 {[%clk 0:02:59]}  a5 {[%clk 0:02:55]} 12. Qc2 {[%clk 0:02:54]}  Bc6 {[%clk 0:02:55]} 13. Rfd1 {[%clk 0:02:41]}  a4 {[%clk 0:02:55]} 14. c5 {[%clk 0:02:40]}  Qa5 {[%clk 0:02:55]} 15. cxd6 {[%clk 0:02:39]}  exd6 {[%clk 0:02:56]} 16. Bf3 {[%clk 0:02:24]}  Rfe8 {[%clk 0:02:52]} 17. Rab1 {[%clk 0:02:15]}  Rac8 {[%clk 0:02:48]} 18. Qd3 {[%clk 0:02:12]}  b5 {[%clk 0:02:25]} 19. a3 {[%clk 0:01:49]}  b4 {[%clk 0:02:08]} 20. axb4 {[%clk 0:01:50]}  Qxb4 {[%clk 0:02:08]} 21. Ra1 {[%clk 0:01:26]}  Rcd8 {[%clk 0:01:05]} 22. Qc2 {[%clk 0:01:14]}  Rc8 {[%clk 0:01:03]} 23. Qd3 {[%clk 0:00:57]}  Qb7 {[%clk 0:00:49]} 24. Re1 {[%clk 0:00:36]}  Rcd8 {[%clk 0:00:38]} 25. Qc4 {[%clk 0:00:27]}  Rc8 {[%clk 0:00:34]} 26. Qd3 {[%clk 0:00:19]}  Ra8 {[%clk 0:00:31]} 27. Qc2 {[%clk 0:00:15]}  Qb4 {[%clk 0:00:17]} 28. Rad1 {[%clk 0:00:07]}  Qb7 {[%clk 0:00:14]} 29. Ra1 {[%clk 0:00:06]}  Nd7 {[%clk 0:00:10]} 30. Bxg7 {[%clk 0:00:06]}  Kxg7 {[%clk 0:00:11]} 31. Nxa4 {[%clk 0:00:06]}  Ne5 {[%clk 0:00:10]} 32. Nc3 {[%clk 0:00:04]}  Nxf3+ {[%clk 0:00:08]} 33. gxf3 {[%clk 0:00:05]}  Qd7 {[%clk 0:00:08]} 34. Rxa8 {[%clk 0:00:04]}  Rxa8 {[%clk 0:00:07]} 35. Kg2 {[%clk 0:00:05]}  Rc8 {[%clk 0:00:06]} 36. Qd2 {[%clk 0:00:05]}  Qe6 {[%clk 0:00:06]} 37. Qd4+ {[%clk 0:00:06]}  f6 {[%clk 0:00:05]} 38. Rd1 {[%clk 0:00:06]}  Bd7 {[%clk 0:00:05]} 39. Qxd6 {[%clk 0:00:05]}  Qxh3+ {[%clk 0:00:05]} 40. Kg1 {[%clk 0:00:05]}  Be6 {[%clk 0:00:03]} 41. Ne2 {[%clk 0:00:04]}  Re8 {[%clk 0:00:01]} 42. Nf4 {[%clk 0:00:03]}  Qxf3 {[%clk 0:00:01]} 43. Nxe6+ {[%clk 0:00:04]}  Rxe6 {[%clk 0:00:02]} 44. Qd7+ {[%clk 0:00:04]}  Kh6 {[%clk 0:00:02]} 45. Rd3 {[%clk 0:00:04]}  Qxe4 {[%clk 0:00:02]} 46. Rh3+ {[%clk 0:00:04]}  Kg5 {[%clk 0:00:03]} 47. Rg3+ {[%clk 0:00:03]}  Kh6 {[%clk 0:00:02]} 48. Rh3+ {[%clk 0:00:03]}  Kg5 {[%clk 0:00:03]} 49. Qd2+ {[%clk 0:00:03]}  Qf4 {[%clk 0:00:03]} 50. Rg3+ {[%clk 0:00:03]}  Kf5 {[%clk 0:00:03]} 51. Qd5+ {[%clk 0:00:03]}  Re5 {[%clk 0:00:03]} 52. Qd7+ {[%clk 0:00:03]}  Re6 {[%clk 0:00:04]} 53. Qd5+ {[%clk 0:00:04]}  Re5 {[%clk 0:00:04]} 54. Qd3+ {[%clk 0:00:05]}  Qe4 {[%clk 0:00:04]} 55. Qd7+ {[%clk 0:00:04]}  Re6 {[%clk 0:00:05]} 56. Qb5+ {[%clk 0:00:03]}  Kf4 {[%clk 0:00:04]} 57. Qb8+ {[%clk 0:00:02]}  Qe5 {[%clk 0:00:04]} 58. Qb4+ {[%clk 0:00:02]}  Qe4 {[%clk 0:00:05]} 59. Qb8+ {[%clk 0:00:02]}  Kf5 {[%clk 0:00:05]} 60. Qb5+ {[%clk 0:00:02]}  Qe5 {[%clk 0:00:05]} 61. Qd3+ {[%clk 0:00:02]}  Qe4 {[%clk 0:00:06]} 62. Rf3+ {[%clk 0:00:02]}  Kg5 {[%clk 0:00:05]} 63. Rg3+ {[%clk 0:00:02]}  Kh6 {[%clk 0:00:04]} 64. Qd7 {[%clk 0:00:02]}  Qe1+ {[%clk 0:00:03]} 65. Kg2 {[%clk 0:00:02]}  Qe4+ {[%clk 0:00:04]} 66. Kg1 {[%clk 0:00:03]}  Re7 {[%clk 0:00:05]} 67. Rh3+ {[%clk 0:00:02]}  Kg7 {[%clk 0:00:05]} 68. Qd2 {[%clk 0:00:02]}  Qb1+ {[%clk 0:00:04]} 69. Kg2 {[%clk 0:00:02]}  Qe4+ {[%clk 0:00:04]} 70. Kg1 {[%clk 0:00:02]}  Qf5 {[%clk 0:00:05]} 71. Qh6+ {[%clk 0:00:02]}  Kg8 {[%clk 0:00:05]} 72. Re3 {[%clk 0:00:03]}  Rxe3 {[%clk 0:00:03]} 73. Qxe3 {[%clk 0:00:03]}  Qg5+ {[%clk 0:00:02]} 74. Qxg5 {[%clk 0:00:03]}  fxg5 {[%clk 0:00:03]} 75. b4 {[%clk 0:00:03]}  Kf7 {[%clk 0:00:04]} 76. b5 {[%clk 0:00:00]}  Ke7 {[%clk 0:00:05]} 0-1


[Site "https://www.chess.com"]

[Event "Titled Tuesday Blitz July 4 Early 2023"]
[White "Makarian, Rudik"]
[Black "Komov, Roman"]
[WhiteFideId "44105681"]
[BlackFideId "24175714"]
[WhiteElo "2971"]
[BlackElo "2645"]
[Result "1-0"]
[Round "10"]
[TimeControl "180+2"]
[Date "2023.07.04"]
[WhiteClock "0:02:20"]
[BlackClock "0:00:28"]
[Board "25"]

1. Nf3 {[%clk 0:03:00]}  d5 {[%clk 0:02:59]} 2. g3 {[%clk 0:03:01]}  Nf6 {[%clk 0:02:59]} 3. Bg2 {[%clk 0:03:02]}  e6 {[%clk 0:03:00]} 4. O-O {[%clk 0:03:03]}  c5 {[%clk 0:03:01]} 5. d3 {[%clk 0:03:04]}  Nc6 {[%clk 0:03:01]} 6. Nbd2 {[%clk 0:03:05]}  Be7 {[%clk 0:03:01]} 7. e4 {[%clk 0:03:06]}  O-O {[%clk 0:03:02]} 8. Re1 {[%clk 0:03:07]}  Qc7 {[%clk 0:02:59]} 9. e5 {[%clk 0:03:07]}  Nd7 {[%clk 0:02:59]} 10. Qe2 {[%clk 0:03:07]}  b5 {[%clk 0:02:57]} 11. Nf1 {[%clk 0:03:07]}  b4 {[%clk 0:02:56]} 12. h4 {[%clk 0:03:07]}  Re8 {[%clk 0:02:53]} 13. Bf4 {[%clk 0:03:08]}  h6 {[%clk 0:02:43]} 14. Ne3 {[%clk 0:03:02]}  Nd4 {[%clk 0:02:38]} 15. Nxd4 {[%clk 0:02:44]}  cxd4 {[%clk 0:02:38]} 16. Nxd5 {[%clk 0:02:29]}  exd5 {[%clk 0:02:29]} 17. e6 {[%clk 0:02:29]}  Qc5 {[%clk 0:00:34]} 18. exf7+ {[%clk 0:02:20]}  Kxf7 {[%clk 0:00:35]} 19. Qh5+ {[%clk 0:02:20]}  Kf8 {[%clk 0:00:28]} 20. Bxd5 {[%clk 0:02:20]} 1-0


[Site "https://www.chess.com"]

[Event "Titled Tuesday Blitz July 4 Early 2023"]
[White "Kononenko, Dmitry"]
[Black "Rahman, Masruri"]
[WhiteFideId "14113538"]
[BlackFideId "7101163"]
[WhiteElo "2631"]
[BlackElo "2843"]
[Result "0-1"]
[Round "10"]
[TimeControl "180+2"]
[Date "2023.07.04"]
[WhiteClock "0:00:13"]
[BlackClock "0:00:13"]
[Board "27"]

1. d4 {[%clk 0:02:59]}  e6 {[%clk 0:02:55]} 2. c4 {[%clk 0:02:58]}  Nf6 {[%clk 0:02:55]} 3. g3 {[%clk 0:02:58]}  Bb4+ {[%clk 0:02:51]} 4. Bd2 {[%clk 0:02:57]}  Qe7 {[%clk 0:02:52]} 5. Bg2 {[%clk 0:02:58]}  O-O {[%clk 0:02:51]} 6. Nf3 {[%clk 0:02:56]}  Bxd2+ {[%clk 0:02:49]} 7. Nfxd2 {[%clk 0:02:54]}  d6 {[%clk 0:02:50]} 8. O-O {[%clk 0:02:49]}  e5 {[%clk 0:02:51]} 9. e3 {[%clk 0:02:48]}  Nc6 {[%clk 0:02:48]} 10. Nb3 {[%clk 0:02:41]}  a5 {[%clk 0:02:41]} 11. Nc3 {[%clk 0:02:38]}  a4 {[%clk 0:02:39]} 12. Nc1 {[%clk 0:02:35]}  a3 {[%clk 0:02:39]} 13. b3 {[%clk 0:02:25]}  Bg4 {[%clk 0:02:38]} 14. Qd2 {[%clk 0:02:20]}  e4 {[%clk 0:02:38]} 15. N1e2 {[%clk 0:02:15]}  Bf3 {[%clk 0:02:25]} 16. Nf4 {[%clk 0:01:42]}  Qd7 {[%clk 0:02:12]} 17. Nfd5 {[%clk 0:01:36]}  Nxd5 {[%clk 0:01:57]} 18. cxd5 {[%clk 0:01:33]}  Ne7 {[%clk 0:01:50]} 19. Nxe4 {[%clk 0:01:29]}  Bxg2 {[%clk 0:01:43]} 20. Kxg2 {[%clk 0:01:30]}  Nxd5 {[%clk 0:01:41]} 21. Rac1 {[%clk 0:01:28]}  h5 {[%clk 0:01:33]} 22. h4 {[%clk 0:01:26]}  Rae8 {[%clk 0:01:14]} 23. Nc3 {[%clk 0:01:17]}  Nf6 {[%clk 0:01:15]} 24. Ne2 {[%clk 0:01:08]}  g5 {[%clk 0:00:39]} 25. Qa5 {[%clk 0:00:49]}  c5 {[%clk 0:00:35]} 26. hxg5 {[%clk 0:00:47]}  Ne4 {[%clk 0:00:32]} 27. dxc5 {[%clk 0:00:38]}  Nxg5 {[%clk 0:00:30]} 28. Nf4 {[%clk 0:00:36]}  Qc6+ {[%clk 0:00:25]} 29. f3 {[%clk 0:00:31]}  d5 {[%clk 0:00:15]} 30. Qd2 {[%clk 0:00:27]}  Re5 {[%clk 0:00:13]} 31. Nxh5 {[%clk 0:00:20]}  Rfe8 {[%clk 0:00:12]} 32. Rfe1 {[%clk 0:00:17]}  d4 {[%clk 0:00:12]} 33. e4 {[%clk 0:00:15]}  Nxf3 {[%clk 0:00:12]} 34. Kxf3 {[%clk 0:00:11]}  Rxh5 {[%clk 0:00:12]} 35. Qxd4 {[%clk 0:00:09]}  Rhe5 {[%clk 0:00:11]} 36. Rc2 {[%clk 0:00:07]}  f5 {[%clk 0:00:08]} 37. Kg2 {[%clk 0:00:07]}  Rxe4 {[%clk 0:00:07]} 38. Rxe4 {[%clk 0:00:07]}  Rxe4 {[%clk 0:00:08]} 39. Qd6 {[%clk 0:00:03]}  Re2+ {[%clk 0:00:08]} 40. Kh3 {[%clk 0:00:03]}  Qxd6 {[%clk 0:00:07]} 41. Kh4 {[%clk 0:00:04]}  Rxc2 {[%clk 0:00:07]} 42. cxd6 {[%clk 0:00:04]}  Rd2 {[%clk 0:00:08]} 43. d7 {[%clk 0:00:04]}  Rxd7 {[%clk 0:00:08]} 44. Kg5 {[%clk 0:00:05]}  Rd2 {[%clk 0:00:09]} 45. Kxf5 {[%clk 0:00:06]}  Rxa2 {[%clk 0:00:10]} 46. g4 {[%clk 0:00:07]}  Rb2 {[%clk 0:00:11]} 47. g5 {[%clk 0:00:08]}  a2 {[%clk 0:00:12]} 48. Ke6 {[%clk 0:00:09]}  a1=Q {[%clk 0:00:13]} 49. Kd7 {[%clk 0:00:10]}  Rxb3 {[%clk 0:00:13]} 50. Kc7 {[%clk 0:00:10]}  Qe5+ {[%clk 0:00:13]} 51. Kc8 {[%clk 0:00:11]}  b5 {[%clk 0:00:13]} 52. Kb7 {[%clk 0:00:11]}  Rc3 {[%clk 0:00:13]} 53. Ka6 {[%clk 0:00:12]}  Qd6+ {[%clk 0:00:13]} 54. Ka5 {[%clk 0:00:12]}  Ra3+ {[%clk 0:00:09]} 55. Kxb5 {[%clk 0:00:12]}  Rb3+ {[%clk 0:00:10]} 56. Kc4 {[%clk 0:00:12]}  Rb4+ {[%clk 0:00:10]} 57. Kc3 {[%clk 0:00:12]}  Qd4+ {[%clk 0:00:11]} 58. Kc2 {[%clk 0:00:13]}  Rb2+ {[%clk 0:00:12]} 59. Kc1 {[%clk 0:00:13]}  Qd2# {[%clk 0:00:13]} 0-1


[Site "https://www.chess.com"]

[Event "Titled Tuesday Blitz July 4 Early 2023"]
[White "Bharath Subramaniyam H"]
[Black "Fisher_TheGalactic"]
[WhiteFideId "46634827"]
[WhiteElo "2818"]
[BlackElo "2626"]
[Result "0-1"]
[Round "10"]
[TimeControl "180+2"]
[Date "2023.07.04"]
[WhiteClock "0:00:00"]
[BlackClock "0:00:18"]
[Board "28"]

1. b3 {[%clk 0:03:00]}  b6 {[%clk 0:02:59]} 2. Bb2 {[%clk 0:03:01]}  Bb7 {[%clk 0:03:00]} 3. c4 {[%clk 0:03:00]}  e6 {[%clk 0:03:00]} 4. Nf3 {[%clk 0:02:58]}  Nf6 {[%clk 0:03:00]} 5. g3 {[%clk 0:02:57]}  Be7 {[%clk 0:03:00]} 6. Bg2 {[%clk 0:02:58]}  O-O {[%clk 0:03:00]} 7. O-O {[%clk 0:02:58]}  d5 {[%clk 0:03:01]} 8. d4 {[%clk 0:02:56]}  dxc4 {[%clk 0:02:53]} 9. bxc4 {[%clk 0:02:56]}  c5 {[%clk 0:02:54]} 10. e3 {[%clk 0:02:50]}  Nc6 {[%clk 0:02:51]} 11. Nbd2 {[%clk 0:02:45]}  Rc8 {[%clk 0:02:50]} 12. Rc1 {[%clk 0:02:44]}  cxd4 {[%clk 0:02:50]} 13. exd4 {[%clk 0:02:43]}  Na5 {[%clk 0:02:51]} 14. Qe2 {[%clk 0:02:38]}  Ba6 {[%clk 0:02:48]} 15. Ne5 {[%clk 0:02:12]}  Nd7 {[%clk 0:02:46]} 16. Rfd1 {[%clk 0:01:56]}  Nxe5 {[%clk 0:02:40]} 17. dxe5 {[%clk 0:01:56]}  Qe8 {[%clk 0:02:26]} 18. Qg4 {[%clk 0:01:50]}  Qa4 {[%clk 0:02:14]} 19. Ne4 {[%clk 0:01:41]}  Rxc4 {[%clk 0:02:01]} 20. Rxc4 {[%clk 0:01:39]}  Bxc4 {[%clk 0:01:44]} 21. Nf6+ {[%clk 0:01:29]}  Kh8 {[%clk 0:01:35]} 22. Rd7 {[%clk 0:01:23]}  Qb4 {[%clk 0:01:09]} 23. h4 {[%clk 0:00:27]}  Qxb2 {[%clk 0:01:09]} 24. Rxe7 {[%clk 0:00:25]}  gxf6 {[%clk 0:01:08]} 25. Qf4 {[%clk 0:00:18]}  Qxe5 {[%clk 0:01:01]} 26. Qh6 {[%clk 0:00:18]}  Kg8 {[%clk 0:00:57]} 27. Rd7 {[%clk 0:00:18]}  Bd5 {[%clk 0:00:48]} 28. Bxd5 {[%clk 0:00:16]}  exd5 {[%clk 0:00:49]} 29. Rxa7 {[%clk 0:00:14]}  Nc4 {[%clk 0:00:48]} 30. a4 {[%clk 0:00:06]}  Nd6 {[%clk 0:00:45]} 31. Ra6 {[%clk 0:00:05]}  Qe1+ {[%clk 0:00:40]} 32. Kg2 {[%clk 0:00:06]}  Qe4+ {[%clk 0:00:37]} 33. Kg1 {[%clk 0:00:05]}  Qd4 {[%clk 0:00:28]} 34. Ra7 {[%clk 0:00:06]}  Ne4 {[%clk 0:00:27]} 35. Qf4 {[%clk 0:00:05]}  Qe5 {[%clk 0:00:26]} 36. Qg4+ {[%clk 0:00:04]}  Kh8 {[%clk 0:00:27]} 37. Rd7 {[%clk 0:00:00]}  Qe6 {[%clk 0:00:18]} 0-1


[Site "https://www.chess.com"]

[Event "Titled Tuesday Blitz July 4 Early 2023"]
[White "Nefedov, Sergey"]
[Black "Lin, Dachey"]
[WhiteFideId "24113417"]
[BlackFideId "2029650"]
[WhiteElo "2607"]
[BlackElo "2800"]
[Result "0-1"]
[Round "10"]
[TimeControl "180+2"]
[Date "2023.07.04"]
[WhiteClock "0:00:01"]
[BlackClock "0:00:29"]
[Board "30"]

1. d4 {[%clk 0:03:00]}  g6 {[%clk 0:02:57]} 2. Nf3 {[%clk 0:02:59]}  Bg7 {[%clk 0:02:58]} 3. c3 {[%clk 0:02:46]}  d5 {[%clk 0:02:55]} 4. Bf4 {[%clk 0:02:46]}  Nf6 {[%clk 0:02:54]} 5. e3 {[%clk 0:02:45]}  O-O {[%clk 0:02:55]} 6. Nbd2 {[%clk 0:02:44]}  c5 {[%clk 0:02:54]} 7. Be2 {[%clk 0:02:41]}  Qb6 {[%clk 0:02:54]} 8. Qb3 {[%clk 0:02:40]}  c4 {[%clk 0:02:54]} 9. Qxb6 {[%clk 0:02:38]}  axb6 {[%clk 0:02:55]} 10. a3 {[%clk 0:02:38]}  b5 {[%clk 0:02:55]} 11. Rc1 {[%clk 0:02:35]}  Nfd7 {[%clk 0:02:55]} 12. e4 {[%clk 0:02:32]}  dxe4 {[%clk 0:02:45]} 13. Nxe4 {[%clk 0:02:32]}  Nb6 {[%clk 0:02:46]} 14. Bd1 {[%clk 0:02:09]}  Bf5 {[%clk 0:02:31]} 15. Ng3 {[%clk 0:02:07]}  Bd3 {[%clk 0:02:29]} 16. Bc2 {[%clk 0:02:00]}  Bxc2 {[%clk 0:02:28]} 17. Rxc2 {[%clk 0:02:00]}  Nc6 {[%clk 0:02:27]} 18. O-O {[%clk 0:01:58]}  f6 {[%clk 0:02:27]} 19. Re1 {[%clk 0:01:57]}  Rfe8 {[%clk 0:02:27]} 20. Rce2 {[%clk 0:01:55]}  Kf7 {[%clk 0:02:24]} 21. Ne4 {[%clk 0:01:53]}  Na4 {[%clk 0:02:23]} 22. Bc1 {[%clk 0:01:48]}  Rad8 {[%clk 0:02:22]} 23. h4 {[%clk 0:01:45]}  Rd5 {[%clk 0:02:12]} 24. g4 {[%clk 0:01:37]}  h5 {[%clk 0:02:08]} 25. g5 {[%clk 0:01:35]}  f5 {[%clk 0:01:58]} 26. Ned2 {[%clk 0:01:35]}  e5 {[%clk 0:01:55]} 27. dxe5 {[%clk 0:01:35]}  Nc5 {[%clk 0:01:54]} 28. Nf1 {[%clk 0:01:14]}  Nd3 {[%clk 0:01:52]} 29. e6+ {[%clk 0:01:14]}  Kf8 {[%clk 0:01:52]} 30. Rd1 {[%clk 0:01:10]}  Rd6 {[%clk 0:01:41]} 31. Ne1 {[%clk 0:01:04]}  Nf4 {[%clk 0:01:27]} 32. Red2 {[%clk 0:01:02]}  Rdxe6 {[%clk 0:01:26]} 33. Rd7 {[%clk 0:00:53]}  Rxe1 {[%clk 0:01:24]} 34. Bxf4 {[%clk 0:00:53]}  R1e2 {[%clk 0:00:58]} 35. Rxb7 {[%clk 0:00:30]}  Be5 {[%clk 0:00:58]} 36. Bxe5 {[%clk 0:00:26]}  Nxe5 {[%clk 0:00:59]} 37. Ne3 {[%clk 0:00:23]}  Nd3 {[%clk 0:00:58]} 38. Nd5 {[%clk 0:00:17]}  R8e4 {[%clk 0:00:51]} 39. f3 {[%clk 0:00:15]}  Rxh4 {[%clk 0:00:51]} 40. Nf6 {[%clk 0:00:12]}  Rh3 {[%clk 0:00:47]} 41. Rd7 {[%clk 0:00:03]}  Rg3+ {[%clk 0:00:45]} 42. Kh1 {[%clk 0:00:04]}  Re7 {[%clk 0:00:37]} 43. Rxe7 {[%clk 0:00:03]}  Kxe7 {[%clk 0:00:38]} 44. b3 {[%clk 0:00:02]}  h4 {[%clk 0:00:38]} 45. bxc4 {[%clk 0:00:02]}  Nf2+ {[%clk 0:00:38]} 46. Kh2 {[%clk 0:00:02]}  Nxd1 {[%clk 0:00:38]} 47. cxb5 {[%clk 0:00:03]}  Nxc3 {[%clk 0:00:36]} 48. b6 {[%clk 0:00:03]}  Kd6 {[%clk 0:00:36]} 49. b7 {[%clk 0:00:01]}  Kc7 {[%clk 0:00:36]} 50. Nd7 {[%clk 0:00:01]}  Kxb7 {[%clk 0:00:36]} 51. Ne5 {[%clk 0:00:02]}  Rxg5 {[%clk 0:00:34]} 52. Kh3 {[%clk 0:00:02]}  Rg1 {[%clk 0:00:32]} 53. Kxh4 {[%clk 0:00:02]}  Nd5 {[%clk 0:00:28]} 54. a4 {[%clk 0:00:02]}  Nf4 {[%clk 0:00:29]} 55. a5 {[%clk 0:00:01]}  g5# {[%clk 0:00:29]} 0-1


[Site "https://www.chess.com"]

[Event "Titled Tuesday Blitz July 4 Early 2023"]
[White "Degenbaev, Aziz"]
[Black "Goryachkina, Aleksandra"]
[WhiteFideId "13802640"]
[BlackFideId "4147103"]
[WhiteElo "2581"]
[BlackElo "2724"]
[Result "0-1"]
[Round "10"]
[TimeControl "180+2"]
[Date "2023.07.04"]
[WhiteClock "0:00:01"]
[BlackClock "0:00:03"]
[Board "34"]

1. d4 {[%clk 0:03:00]}  Nf6 {[%clk 0:02:59]} 2. c4 {[%clk 0:03:00]}  e6 {[%clk 0:03:00]} 3. Nf3 {[%clk 0:03:00]}  d5 {[%clk 0:03:00]} 4. g3 {[%clk 0:03:01]}  Bb4+ {[%clk 0:02:58]} 5. Bd2 {[%clk 0:03:00]}  a5 {[%clk 0:02:57]} 6. Qc2 {[%clk 0:02:59]}  O-O {[%clk 0:02:54]} 7. Bg2 {[%clk 0:02:59]}  Be7 {[%clk 0:02:45]} 8. O-O {[%clk 0:02:59]}  Nbd7 {[%clk 0:02:44]} 9. Rd1 {[%clk 0:02:58]}  c6 {[%clk 0:02:44]} 10. Na3 {[%clk 0:02:57]}  Ne4 {[%clk 0:02:38]} 11. Rac1 {[%clk 0:02:55]}  Bd6 {[%clk 0:02:33]} 12. Nb1 {[%clk 0:02:55]}  f5 {[%clk 0:02:31]} 13. Nc3 {[%clk 0:02:55]}  Qf6 {[%clk 0:02:30]} 14. Bf4 {[%clk 0:02:55]}  Bxf4 {[%clk 0:02:11]} 15. gxf4 {[%clk 0:02:56]}  Qh6 {[%clk 0:02:06]} 16. e3 {[%clk 0:02:56]}  Ndf6 {[%clk 0:01:59]} 17. a3 {[%clk 0:02:47]}  Bd7 {[%clk 0:01:58]} 18. b4 {[%clk 0:02:47]}  axb4 {[%clk 0:01:50]} 19. axb4 {[%clk 0:02:48]}  Be8 {[%clk 0:01:49]} 20. Ne5 {[%clk 0:02:38]}  Bh5 {[%clk 0:01:28]} 21. Re1 {[%clk 0:02:36]}  Kh8 {[%clk 0:00:56]} 22. Ra1 {[%clk 0:02:30]}  g5 {[%clk 0:00:48]} 23. Rxa8 {[%clk 0:01:46]}  Rxa8 {[%clk 0:00:49]} 24. Ne2 {[%clk 0:01:47]}  Qg7 {[%clk 0:00:22]} 25. f3 {[%clk 0:01:01]}  Nd6 {[%clk 0:00:18]} 26. c5 {[%clk 0:01:00]}  Nf7 {[%clk 0:00:16]} 27. Nxf7+ {[%clk 0:00:59]}  Bxf7 {[%clk 0:00:11]} 28. fxg5 {[%clk 0:00:59]}  Qxg5 {[%clk 0:00:12]} 29. Nf4 {[%clk 0:00:58]}  Rg8 {[%clk 0:00:11]} 30. Qf2 {[%clk 0:00:56]}  Nh5 {[%clk 0:00:10]} 31. Nxh5 {[%clk 0:00:22]}  Bxh5 {[%clk 0:00:11]} 32. Kh1 {[%clk 0:00:23]}  Ra8 {[%clk 0:00:10]} 33. e4 {[%clk 0:00:20]}  f4 {[%clk 0:00:06]} 34. exd5 {[%clk 0:00:16]}  exd5 {[%clk 0:00:07]} 35. Re5 {[%clk 0:00:15]}  Qg6 {[%clk 0:00:06]} 36. Qe1 {[%clk 0:00:07]}  Qf7 {[%clk 0:00:04]} 37. Re7 {[%clk 0:00:05]}  Qf6 {[%clk 0:00:04]} 38. Re5 {[%clk 0:00:04]}  Bg6 {[%clk 0:00:04]} 39. Bh3 {[%clk 0:00:04]}  Kg7 {[%clk 0:00:03]} 40. Re7+ {[%clk 0:00:03]}  Kh6 {[%clk 0:00:04]} 41. Re5 {[%clk 0:00:04]}  Ra2 {[%clk 0:00:03]} 42. Bg4 {[%clk 0:00:04]}  Rb2 {[%clk 0:00:03]} 43. Qf2 {[%clk 0:00:01]}  Rxf2 {[%clk 0:00:03]} 0-1


[Site "https://www.chess.com"]

[Event "Titled Tuesday Blitz July 4 Early 2023"]
[White "Bruedigam, Martin"]
[Black "Amilal Munkhdalai"]
[WhiteFideId "24608033"]
[BlackFideId "4903250"]
[WhiteElo "2568"]
[BlackElo "2702"]
[Result "0-1"]
[Round "10"]
[TimeControl "180+2"]
[Date "2023.07.04"]
[WhiteClock "0:00:09"]
[BlackClock "0:00:08"]
[Board "35"]

1. c4 {[%clk 0:03:00]}  Nf6 {[%clk 0:02:58]} 2. g3 {[%clk 0:03:00]}  c6 {[%clk 0:02:57]} 3. b3 {[%clk 0:02:56]}  d5 {[%clk 0:02:57]} 4. Bb2 {[%clk 0:02:56]}  Bf5 {[%clk 0:02:57]} 5. d3 {[%clk 0:02:56]}  e6 {[%clk 0:02:57]} 6. Bg2 {[%clk 0:02:55]}  h6 {[%clk 0:02:57]} 7. Nf3 {[%clk 0:02:56]}  Nbd7 {[%clk 0:02:57]} 8. O-O {[%clk 0:02:57]}  Be7 {[%clk 0:02:56]} 9. Nbd2 {[%clk 0:02:57]}  O-O {[%clk 0:02:56]} 10. Re1 {[%clk 0:02:57]}  Bh7 {[%clk 0:02:56]} 11. a3 {[%clk 0:02:57]}  a5 {[%clk 0:02:56]} 12. Qc2 {[%clk 0:02:54]}  Qb6 {[%clk 0:02:56]} 13. Rab1 {[%clk 0:02:43]}  Rfe8 {[%clk 0:02:47]} 14. h3 {[%clk 0:02:39]}  Bf8 {[%clk 0:02:46]} 15. e4 {[%clk 0:02:33]}  dxe4 {[%clk 0:02:36]} 16. dxe4 {[%clk 0:02:29]}  Rad8 {[%clk 0:02:35]} 17. Qc3 {[%clk 0:01:59]}  Nc5 {[%clk 0:02:28]} 18. Ne5 {[%clk 0:01:59]}  Ncd7 {[%clk 0:01:58]} 19. Nd3 {[%clk 0:01:41]}  e5 {[%clk 0:01:39]} 20. b4 {[%clk 0:01:36]}  axb4 {[%clk 0:01:35]} 21. axb4 {[%clk 0:01:37]}  c5 {[%clk 0:01:36]} 22. b5 {[%clk 0:01:32]}  Bd6 {[%clk 0:01:32]} 23. Nf1 {[%clk 0:01:17]}  Nf8 {[%clk 0:01:31]} 24. Qd2 {[%clk 0:00:57]}  Ne6 {[%clk 0:01:26]} 25. Bc3 {[%clk 0:00:57]}  Qc7 {[%clk 0:01:19]} 26. Qb2 {[%clk 0:00:55]}  Nd4 {[%clk 0:01:15]} 27. Ra1 {[%clk 0:00:51]}  Ra8 {[%clk 0:01:12]} 28. f3 {[%clk 0:00:48]}  b6 {[%clk 0:01:01]} 29. Ne3 {[%clk 0:00:48]}  Qb7 {[%clk 0:00:53]} 30. Kf2 {[%clk 0:00:47]}  Kh8 {[%clk 0:00:50]} 31. Rxa8 {[%clk 0:00:45]}  Rxa8 {[%clk 0:00:50]} 32. Ra1 {[%clk 0:00:46]}  Rxa1 {[%clk 0:00:48]} 33. Qxa1 {[%clk 0:00:47]}  Nxe4+ {[%clk 0:00:42]} 34. fxe4 {[%clk 0:00:44]}  Bxe4 {[%clk 0:00:43]} 35. Qh1 {[%clk 0:00:27]}  Bxg2 {[%clk 0:00:34]} 36. Qxg2 {[%clk 0:00:27]}  e4 {[%clk 0:00:33]} 37. Nf4 {[%clk 0:00:13]}  Qa8 {[%clk 0:00:25]} 38. Kg1 {[%clk 0:00:13]}  Qa3 {[%clk 0:00:22]} 39. Ned5 {[%clk 0:00:11]}  Qc1+ {[%clk 0:00:19]} 40. Kf2 {[%clk 0:00:10]}  Qc2+ {[%clk 0:00:13]} 41. Kf1 {[%clk 0:00:09]}  Qd1+ {[%clk 0:00:13]} 42. Kf2 {[%clk 0:00:09]}  Bxf4 {[%clk 0:00:10]} 43. Qxe4 {[%clk 0:00:08]}  Bg5 {[%clk 0:00:05]} 44. Bxd4 {[%clk 0:00:08]}  cxd4 {[%clk 0:00:05]} 45. h4 {[%clk 0:00:07]}  Bc1 {[%clk 0:00:03]} 46. Qe8+ {[%clk 0:00:07]}  Kh7 {[%clk 0:00:04]} 47. Qe4+ {[%clk 0:00:07]}  g6 {[%clk 0:00:04]} 48. Nf6+ {[%clk 0:00:07]}  Kg7 {[%clk 0:00:04]} 49. Qe5 {[%clk 0:00:08]}  Be3+ {[%clk 0:00:04]} 50. Kg2 {[%clk 0:00:08]}  Qe2+ {[%clk 0:00:05]} 51. Kh3 {[%clk 0:00:08]}  Qf1+ {[%clk 0:00:04]} 52. Kh2 {[%clk 0:00:07]}  Qxf6 {[%clk 0:00:05]} 53. Qxf6+ {[%clk 0:00:06]}  Kxf6 {[%clk 0:00:06]} 54. c5 {[%clk 0:00:07]}  d3 {[%clk 0:00:06]} 55. c6 {[%clk 0:00:07]}  d2 {[%clk 0:00:07]} 56. c7 {[%clk 0:00:07]}  d1=Q {[%clk 0:00:07]} 57. c8=Q {[%clk 0:00:08]}  Qg1+ {[%clk 0:00:07]} 58. Kh3 {[%clk 0:00:08]}  Qh1+ {[%clk 0:00:08]} 59. Kg4 {[%clk 0:00:09]}  h5# {[%clk 0:00:08]} 0-1


[Site "https://www.chess.com"]